fUST/lending_fUST_20240810
["ID","MTS","AMOUNT","RATE_DAILY","PERIOD"]
[334583241,1723276251221,-527.4728327,0.00020821,3]
[334583242,1723276251230,-500.0,0.00020821,3]
[334583243,1723276251239,-500.0,0.00020821,3]
[334583244,1723276251250,-882.89,0.00020821,3]
[334583245,1723276251258,-6232.14,0.00020821,3]
[334583246,1723276251267,-1230.24,0.00020821,3]
[334583247,1723276251277,-703.18,0.00020821,3]
[334583248,1723276251287,-500.0,0.00020821,2]
[334583249,1723276251296,-1155.57,0.00020821,3]
[334583250,1723276251305,-500.0,0.00020821,3]
[334583251,1723276251314,-500.0,0.00020821,3]
[334583252,1723276251323,-161.063992,0.00020821,2]
[334583253,1723276251333,-161.063992,0.00020821,2]
[334583254,1723276251342,-1515.68,0.00020821,3]
[334583255,1723276251351,-161.063992,0.00020821,2]
[334583256,1723276251360,-161.063992,0.00020821,2]
[334583257,1723276251369,-161.063992,0.00020821,2]
[334583258,1723276251379,-161.063992,0.00020821,2]
[334583259,1723276251388,-161.063992,0.00020821,2]
[334583260,1723276251507,-500.0,0.00020821,3]
[334583261,1723276251516,-161.063992,0.00020821,2]
[334583262,1723276251525,-161.063992,0.00020821,2]
[334583263,1723276251534,-161.063992,0.00020821,2]
[334583264,1723276251543,-500.0,0.00020821,3]
[334583265,1723276251552,-161.063992,0.00020821,2]
[334583266,1723276251562,-754.46,0.00020821,3]
[334583267,1723276251575,-500.0,0.00020821,3]
[334583268,1723276251584,-499.15623592,0.00020821,3]
[334583269,1723276251594,-161.063992,0.00020821,2]
[334583270,1723276251603,-500.0,0.00020821,3]
[334583271,1723276251614,-500.0,0.00020821,3]
[334583272,1723276251623,-500.0,0.00020821,3]
[334583273,1723276251633,-161.063992,0.00020821,2]
[334583274,1723276251644,-500.0,0.00020821,3]
[334583275,1723276251653,-161.063993,0.00020821,2]
[334583276,1723276251663,-500.0,0.00020821,3]
[334583277,1723276251672,-2683.615045,0.00020843,2]
[334583278,1723276251682,-1570.129309,0.00020843,2]
[334583279,1723276251690,-3724.795981,0.00020843,2]
[334583280,1723276251700,-2589.073114,0.00020843,2]
[334583281,1723276251709,-2266.431704,0.00020843,2]
[334583282,1723276251719,-428.122874,0.00020843,2]
[334583283,1723276251730,-428.122882,0.00020843,2]
[334583284,1723276251741,-535.658587,0.00020843,2]
[334583285,1723276251751,-155.145213,0.00020843,2]
[334583286,1723276251761,-155.145214,0.00020843,2]
[334583287,1723276251770,-151.0,0.00020857,2]
[334583288,1723276251780,-151.0,0.00020857,2]
[334583289,1723276251789,-150.0,0.00020893,2]
[334583290,1723276251799,-400.0,0.00020897,2]
[334583291,1723276251810,-3200.0,0.000209,2]
[334583292,1723276251820,-620.51182949,0.00020908,2]
[334583293,1723276251829,-160.0,0.00020912,4]
[334583294,1723276251839,-400.0,0.00020937,2]
[334583295,1723276251849,-400.0,0.00020937,2]
[334583296,1723276251858,-151.0,0.00020963,2]
[334583297,1723276251868,-151.0,0.00020963,2]
[334583298,1723276251877,-680.320847,0.00020999,2]
[334583299,1723276251887,-680.320847,0.00020999,2]
[334583300,1723276251896,-1000.0,0.00021,21]
[334583301,1723276251905,-297.94087205,0.00021,2]
[334583302,1723276251915,-3000.0,0.00021,2]
[334583303,1723276251925,-3000.0,0.0002101,2]
[334583304,1723276251935,-3000.0,0.0002102,2]
[334583305,1723276251944,-3000.0,0.0002103,2]
[334583306,1723276251953,-3000.0,0.0002104,2]
[334583307,1723276251963,-3000.0,0.0002105,2]
[334583308,1723276251972,-3000.0,0.0002106,2]
[334583309,1723276251982,-153.514612,0.0002106,2]
[334583310,1723276251991,-153.514604,0.0002106,2]
[334583311,1723276252001,-3000.0,0.0002107,2]
[334583312,1723276252011,-151.0,0.0002107,2]
[334583313,1723276252020,-151.0,0.0002107,2]
[334583314,1723276252029,-3000.0,0.0002108,2]
[334583315,1723276252039,-163.419935,0.00021087,2]
[334583316,1723276252049,-186.920156,0.00021087,2]
[334583317,1723276252058,-3000.0,0.0002109,2]
[334583318,1723276252067,-150.234115,0.00021094,2]
[334583319,1723276252076,-167.048977,0.00021094,2]
[334583320,1723276252085,-165.384162,0.00021094,2]
[334583321,1723276252094,-167.060381,0.00021094,2]
[334583322,1723276252103,-184.132508,0.00021094,2]
[334583323,1723276252113,-162.530738,0.00021094,2]
[334583324,1723276252122,-2683.615045,0.00021094,2]
[334583325,1723276252131,-1570.129309,0.00021094,2]
[334583326,1723276252141,-3724.795981,0.00021094,2]
[334583327,1723276252150,-2589.073114,0.00021094,2]
[334583328,1723276252160,-2266.431704,0.00021094,2]
[334583329,1723276252169,-71750.01320709,0.00021095,11]
[334583330,1723276252179,-500.0,0.00021095,3]
[334583331,1723276252189,-500.0,0.00021095,3]
[334583332,1723276252198,-500.0,0.00021095,3]
[334583333,1723276252207,-500.0,0.00021095,3]
[334583334,1723276252216,-512.8578721,0.00021095,3]
[334583335,1723276252225,-500.0,0.00021095,3]
[334583336,1723276252235,-500.0,0.00021095,3]
[334583337,1723276252243,-500.0,0.00021095,3]
[334583338,1723276252253,-500.0,0.00021095,3]
[334583339,1723276252262,-500.0,0.00021095,3]
[334583340,1723276252271,-500.0,0.00021095,3]
[334583341,1723276252280,-500.0,0.00021095,3]
[334583342,1723276252289,-506.32547992,0.00021095,3]
[334583343,1723276252298,-500.0,0.00021095,3]
[334583344,1723276252308,-500.0,0.00021095,3]
[334583345,1723276252317,-500.0,0.00021095,3]
[334583346,1723276252326,-500.0,0.00021095,3]
[334583347,1723276252336,-500.0,0.00021095,3]
[334583348,1723276252345,-500.0,0.00021095,3]
[334583349,1723276252354,-773.31,0.00021095,3]
[334583350,1723276252364,-500.0,0.00021095,3]
[334583351,1723276252373,-472.56169498,0.00021095,3]
[334583352,1723276252383,-500.0,0.00021095,3]
[334583353,1723276252392,-203.46818541,0.00021095,3]
[334583354,1723276252401,-505.24994969,0.00021095,3]
[334583355,1723276252411,-466.14977577,0.00021095,3]
[334583356,1723276252420,-534.75290208,0.00021095,3]
[334583357,1723276252429,-567.7139551,0.00021095,3]
[334583358,1723276252438,-509.90810267,0.00021095,3]
[334583359,1723276252447,-504.59463906,0.00021095,3]
[334583360,1723276252458,-666.44,0.00021095,3]
[334583361,1723276252467,-637.21,0.00021095,3]
[334583362,1723276252477,-500.0,0.00021095,3]
[334583363,1723276252486,-500.0,0.00021095,3]
[334583364,1723276252495,-500.0,0.00021095,3]
[334583365,1723276252504,-634.01843658,0.00021095,3]
[334583366,1723276252514,-512.20803839,0.00021095,3]
[334583367,1723276252523,-500.0,0.00021095,3]
[334583368,1723276252533,-505.87829546,0.00021095,3]
[334583369,1723276252542,-500.0,0.00021095,3]
[334583370,1723276252551,-544.38059024,0.00021095,3]
[334583371,1723276252561,-500.0,0.00021095,3]
[334583372,1723276252575,-500.0,0.00021095,3]
[334583373,1723276252585,-500.0,0.00021095,3]
[334583374,1723276252594,-500.0,0.00021095,3]
[334583375,1723276252604,-500.0,0.00021095,3]
[334583376,1723276252615,-500.0,0.00021095,3]
[334583377,1723276252625,-500.0,0.00021095,3]
[334583378,1723276252634,-500.0,0.00021095,3]
[334583379,1723276252644,-500.0,0.00021095,3]
[334583380,1723276252654,-500.0,0.00021095,3]
[334583381,1723276252663,-500.0,0.00021095,3]
[334583382,1723276252673,-386.59759326,0.00021095,3]
[334583383,1723276252682,-500.0,0.00021095,3]
[334583384,1723276252691,-500.0,0.00021095,3]
[334583385,1723276252700,-500.0,0.00021095,3]
[334583386,1723276252710,-689.69,0.00021095,3]
[334583387,1723276252720,-989.17,0.00021095,3]
[334583388,1723276252729,-500.0,0.00021095,3]
[334583389,1723276252737,-483.468636,0.00021095,2]
[334583390,1723276252748,-483.468636,0.00021095,2]
[334583391,1723276252757,-500.0,0.00021095,3]
[334583392,1723276252767,-508.45961368,0.00021095,3]
[334583393,1723276252777,-483.468636,0.00021095,2]
[334583394,1723276252786,-483.468627,0.00021095,2]
[334583395,1723276252796,-521.34407448,0.00021095,3]
[334583396,1723276252806,-1129.6,0.00021095,3]
[334583397,1723276252815,-500.0,0.00021095,3]
[334583398,1723276252825,-500.0,0.00021095,3]
[334583399,1723276252834,-500.0,0.00021095,3]
[334583400,1723276252843,-500.0,0.00021095,3]
[334583401,1723276252851,-500.0,0.00021095,3]
[334583402,1723276252860,-500.0,0.00021095,3]
[334583403,1723276252870,-500.0,0.00021095,3]
[334583404,1723276252880,-500.0,0.00021095,3]
[334583405,1723276252890,-499.66752447,0.00021095,3]
[334583406,1723276252900,-509.88841155,0.00021095,3]
[334583407,1723276252909,-500.0,0.00021095,3]
[334583408,1723276252919,-781.117947,0.00021095,3]
[334583409,1723276254136,-190.35655615,0.00019167,2]
[334583410,1723276254146,-244.01806079,0.00019451,2]
[334583411,1723276254156,-183.12142007,0.00019451,2]
[334583412,1723276254166,-500.0,0.00020821,3]
[334583413,1723276254176,-500.0,0.00020821,3]
[334583414,1723276254186,-500.0,0.00020821,3]
[334583415,1723276254195,-500.0,0.00020821,3]
[334583416,1723276254204,-500.0,0.00020821,3]
[334583417,1723276254216,-500.0,0.00020821,3]
[334583418,1723276254227,-500.0,0.00020821,3]
[334583419,1723276254238,-500.0,0.00020821,3]
[334583420,1723276254250,-500.0,0.00020821,3]
[334583421,1723276254261,-412.37993126,0.00020821,3]
[334583422,1723276254270,-374.24562602,0.00021095,3]
[334583423,1723276254280,-1049.95,0.00021095,3]
[334583424,1723276254290,-275.4453298,0.00021095,3]
[334583425,1723276254300,-500.0,0.00021095,3]
[334583426,1723276254310,-433.30512163,0.00021095,3]
[334583427,1723276254319,-1308.21,0.00021095,3]
[334583428,1723276254328,-584.44,0.00021095,3]
[334583429,1723276254338,-557.23,0.00021095,3]
[334583430,1723276254347,-500.0,0.00021095,3]
[334583431,1723276254357,-549.94,0.00021095,3]
[334583432,1723276254368,-500.0,0.00021095,3]
[334583433,1723276254377,-500.0,0.00021095,3]
[334583434,1723276254387,-500.0,0.00021095,3]
[334583435,1723276254396,-500.0,0.00021095,3]
[334583436,1723276254405,-504.43769501,0.00021095,3]
[334583437,1723276254417,-500.0,0.00021095,3]
[334583438,1723276254427,-500.0,0.00021095,3]
[334583439,1723276254436,-684.99,0.00021095,3]
[334583440,1723276254447,-518.22,0.00021095,3]
[334583441,1723276254456,-500.0,0.00021095,3]
[334583442,1723276254466,-500.0,0.00021095,3]
[334583443,1723276254476,-486.90158753,0.00021095,3]
[334583444,1723276254486,-500.0,0.00021095,3]
[334583445,1723276254497,-500.0,0.00021095,3]
[334583446,1723276254506,-500.0,0.00021095,3]
[334583447,1723276254516,-500.0,0.00021095,3]
[334583448,1723276254526,-530.36,0.00021095,3]
[334583449,1723276254536,-500.0,0.00021095,3]
[334583450,1723276254545,-511.8848177,0.00021095,3]
[334583451,1723276254555,-500.0,0.00021095,3]
[334583452,1723276254568,-1157.21,0.00021095,3]
[334583453,1723276254577,-741.79,0.00021095,3]
[334583454,1723276254586,-500.0,0.00021095,3]
[334583455,1723276254596,-500.0,0.00021095,3]
[334583456,1723276254607,-500.0,0.00021095,2]
[334583457,1723276254616,-1239.83,0.00021095,3]
[334583458,1723276254626,-500.0,0.00021095,3]
[334583459,1723276254635,-505.87117608,0.00021095,3]
[334583460,1723276254647,-855.13,0.00021095,3]
[334583461,1723276254657,-500.0,0.00021095,3]
[334583462,1723276254667,-506.54260468,0.00021095,3]
[334583463,1723276254677,-500.0,0.00021095,3]
[334583464,1723276254686,-500.0,0.00021095,3]
[334583465,1723276254696,-500.0,0.00021095,3]
[334583466,1723276254705,-500.0,0.00021095,3]
[334583467,1723276254715,-500.0,0.00021095,3]
[334583468,1723276254725,-500.0,0.00021095,3]
[334583469,1723276254735,-500.0,0.00021095,3]
[334583470,1723276254744,-500.0,0.00021095,3]
[334583471,1723276254756,-971.77,0.00021095,3]
[334583472,1723276254766,-500.0,0.00021095,3]
[334583473,1723276254775,-500.0,0.00021095,3]
[334583474,1723276254786,-500.0,0.00021095,3]
[334583475,1723276254796,-503.21479135,0.00021095,3]
[334583476,1723276254807,-500.0,0.00021095,3]
[334583477,1723276254817,-671.1,0.00021095,3]
[334583478,1723276254827,-683.1,0.00021095,3]
[334583479,1723276254836,-500.0,0.00021095,3]
[334583480,1723276254846,-500.0,0.00021095,3]
[334583481,1723276254861,-500.0,0.00021095,3]
[334583482,1723276254870,-500.0,0.00021095,3]
[334583483,1723276254881,-500.0,0.00021095,3]
[334583484,1723276254891,-500.0,0.00021095,3]
[334583485,1723276254901,-550.02,0.00021095,2]
[334583486,1723276254910,-500.0,0.00021095,3]
[334583487,1723276254920,-580.80276543,0.00021095,3]
[334583488,1723276254929,-500.0,0.00021095,3]
[334583489,1723276254939,-500.0,0.00021095,3]
[334583490,1723276254949,-500.0,0.00021095,3]
[334583491,1723276254959,-688.42,0.00021095,3]
[334583492,1723276254968,-1068.4,0.00021095,3]
[334583493,1723276254979,-500.0,0.00021095,3]
[334583494,1723276254988,-500.0,0.00021095,3]
[334583495,1723276255003,-503.6693191,0.00021095,3]
[334583496,1723276255012,-500.0,0.00021095,3]
[334583497,1723276255138,-500.0,0.00021095,3]
[334583498,1723276255148,-500.0,0.00021095,3]
[334583499,1723276255157,-500.0,0.00021095,3]
[334583500,1723276255167,-247.00542282,0.00021095,3]
[334583501,1723276255176,-572.97,0.00021095,3]
[334583502,1723276255186,-806.88,0.00021095,3]
[334583503,1723276255195,-500.0,0.00021095,3]
[334583504,1723276255204,-500.0,0.00021095,3]
[334583505,1723276255214,-857.64,0.00021095,3]
[334583506,1723276255224,-500.0,0.00021095,3]
[334583507,1723276255234,-500.0,0.00021095,3]
[334583508,1723276255249,-500.0,0.00021095,3]
[334583509,1723276255258,-500.0,0.00021095,3]
[334583510,1723276255268,-500.0,0.00021095,3]
[334583511,1723276255278,-502.92047336,0.00021095,3]
[334583512,1723276255288,-793.36,0.00021095,3]
[334583513,1723276255297,-500.0,0.00021095,3]
[334583514,1723276255306,-610.3965009,0.00021095,3]
[334583515,1723276255316,-370.22652186,0.00021095,3]
[334583516,1723276255325,-500.0,0.00021095,3]
[334583517,1723276255334,-500.0,0.00021095,3]
[334583518,1723276255344,-500.0,0.00021095,3]
[334583519,1723276255353,-671.88,0.00021095,3]
[334583520,1723276255363,-502.11589131,0.00021095,3]
[334583521,1723276255372,-500.0,0.00021095,3]
[334583522,1723276255381,-500.0,0.00021095,3]
[334583523,1723276255391,-751.48,0.00021095,3]
[334583524,1723276255400,-502.97298138,0.00021095,3]
[334583525,1723276255410,-630.19,0.00021095,3]
[334583526,1723276255419,-500.0,0.00021095,3]
[334583527,1723276255427,-500.0,0.00021095,3]
[334583528,1723276255436,-516.3538844,0.00021095,3]
[334583529,1723276255446,-500.0,0.00021095,3]
[334583530,1723276255455,-503.60502449,0.00021095,3]
[334583531,1723276255465,-670.89,0.00021095,3]
[334583532,1723276255474,-891.54,0.00021095,3]
[334583533,1723276255483,-502.42234786,0.00021095,3]
[334583534,1723276255492,-504.00152233,0.00021095,3]
[334583535,1723276255507,-587.01,0.00021095,3]
[334583536,1723276255516,-693.32,0.00021095,3]
[334583537,1723276255526,-807.16,0.00021095,3]
[334583538,1723276255535,-500.0,0.00021095,3]
[334583539,1723276255545,-505.37209855,0.00021095,3]
[334583540,1723276255554,-500.0,0.00021095,3]
[334583541,1723276255564,-500.0,0.00021095,3]
[334583542,1723276255575,-500.0,0.00021095,3]
[334583543,1723276255585,-500.0,0.00021095,3]
[334583544,1723276255594,-962.38,0.00021095,3]
[334583545,1723276255603,-500.0,0.00021095,3]
[334583546,1723276255613,-500.0,0.00021095,3]
[334583547,1723276255622,-535.29727991,0.00021095,3]
[334583548,1723276255631,-500.0,0.00021095,3]
[334583549,1723276255642,-500.0,0.00021095,3]
[334583550,1723276255651,-632.3,0.00021095,3]
[334583551,1723276255660,-506.84707842,0.00021095,3]
[334583552,1723276255669,-500.0,0.00021095,3]
[334583553,1723276255679,-500.0,0.00021095,3]
[334583554,1723276255688,-500.0,0.00021095,3]
[334583555,1723276255698,-500.0,0.00021095,3]
[334583556,1723276255708,-500.0,0.00021095,3]
[334583557,1723276255718,-572.62,0.00021095,3]
[334583558,1723276255730,-500.0,0.00021095,3]
[334583559,1723276255740,-786.45,0.00021095,3]
[334583560,1723276255752,-500.0,0.00021095,3]
[334583561,1723276255763,-743.14,0.00021095,3]
[334583562,1723276255772,-500.0,0.00021095,3]
[334583563,1723276255781,-500.0,0.00021095,3]
[334583564,1723276255791,-779.2,0.00021095,3]
[334583565,1723276255800,-500.0,0.00021095,3]
[334583566,1723276255809,-500.0,0.00021095,3]
[334583567,1723276255820,-790.6,0.00021095,3]
[334583568,1723276255830,-782.99,0.00021095,3]
[334583569,1723276255841,-500.0,0.00021095,3]
[334583570,1723276255850,-500.0,0.00021095,3]
[334583571,1723276255859,-500.0,0.00021095,3]
[334583572,1723276255869,-503.34708783,0.00021095,3]
[334583573,1723276255877,-500.0,0.00021095,3]
[334583574,1723276255887,-500.0,0.00021095,3]
[334583575,1723276255897,-502.93674749,0.00021095,3]
[334583576,1723276255906,-500.0,0.00021095,3]
[334583577,1723276255915,-500.0,0.00021095,3]
[334583578,1723276255925,-500.0,0.00021095,3]
[334583579,1723276255934,-1186.71,0.00021095,3]
[334583580,1723276255944,-547.09511165,0.00021095,3]
[334583581,1723276255953,-500.0,0.00021095,3]
[334583582,1723276255965,-500.0,0.00021095,3]
[334583583,1723276255983,-505.97789512,0.00021095,3]
[334583584,1723276255999,-500.0,0.00021095,3]
[334583585,1723276256018,-500.0,0.00021095,3]
[334583586,1723276256038,-500.0,0.00021095,3]
[334583587,1723276256056,-500.0,0.00021095,3]
[334583588,1723276256073,-500.0,0.00021095,3]
[334583589,1723276256090,-500.0,0.00021095,3]
[334583590,1723276256107,-500.0,0.00021095,3]
[334583591,1723276256120,-631.56724369,0.00021095,3]
[334583592,1723276256136,-481.46854491,0.00021095,3]
[334583593,1723276256152,-1052.4,0.00021095,3]
[334583594,1723276256169,-500.0,0.00021095,3]
[334583595,1723276256184,-500.0,0.00021095,3]
[334583596,1723276256196,-500.0,0.00021095,3]
[334583597,1723276256211,-731.34,0.00021095,3]
[334583598,1723276256226,-500.0,0.00021095,3]
[334583599,1723276256243,-500.0,0.00021095,3]
[334583600,1723276256261,-500.0,0.00021095,3]
[334583601,1723276256273,-500.0,0.00021095,3]
[334583602,1723276256287,-500.0,0.00021095,3]
[334583603,1723276256300,-500.0,0.00021095,3]
[334583604,1723276256317,-500.0,0.00021095,3]
[334583605,1723276256332,-500.0,0.00021095,3]
[334583606,1723276256347,-500.0,0.00021095,3]
[334583607,1723276256361,-505.67483261,0.00021095,3]
[334583608,1723276256374,-1095.95,0.00021095,3]
[334583609,1723276256388,-575.15748912,0.00021095,3]
[334583610,1723276256402,-792.52,0.00021095,3]
[334583611,1723276256416,-500.0,0.00021095,3]
[334583612,1723276256429,-638.02772471,0.00021095,3]
[334583613,1723276256442,-500.0,0.00021095,3]
[334583614,1723276256456,-500.0,0.00021095,3]
[334583615,1723276256469,-500.0,0.00021095,3]
[334583616,1723276256482,-500.0,0.00021095,3]
[334583617,1723276256495,-500.0,0.00021095,3]
[334583618,1723276256509,-511.74529395,0.00021095,3]
[334583619,1723276256522,-1873.34,0.00021095,3]
[334583620,1723276256536,-500.0,0.00021095,3]
[334583621,1723276256550,-500.0,0.00021095,3]
[334583622,1723276256563,-500.0,0.00021095,3]
[334583623,1723276256579,-500.0,0.00021095,3]
[334583624,1723276256592,-500.0,0.00021095,3]
[334583625,1723276256606,-155.08349641,0.00021095,3]
[334583626,1723276256619,-699.7,0.00021095,3]
[334583627,1723276256632,-500.0,0.00021095,3]
[334583628,1723276256646,-506.87923771,0.00021095,3]
[334583629,1723276256660,-500.0,0.00021095,3]
[334583630,1723276256674,-505.10259309,0.00021095,3]
[334583631,1723276256687,-500.0,0.00021095,3]
[334583632,1723276256701,-504.67599831,0.00021095,3]
[334583633,1723276256714,-500.0,0.00021095,3]
[334583634,1723276256728,-500.0,0.00021095,3]
[334583635,1723276256741,-500.0,0.00021095,3]
[334583636,1723276256756,-859.21,0.00021095,3]
[334583637,1723276256769,-500.0,0.00021095,3]
[334583638,1723276256782,-500.0,0.00021095,3]
[334583639,1723276256792,-500.0,0.00021095,3]
[334583640,1723276256803,-500.0,0.00021095,3]
[334583641,1723276256812,-687.21,0.00021095,3]
[334583642,1723276256821,-500.0,0.00021095,3]
[334583643,1723276256830,-500.0,0.00021095,3]
[334583644,1723276256841,-500.0,0.00021095,3]
[334583645,1723276256850,-1142.89,0.00021095,3]
[334583646,1723276256859,-510.27397202,0.00021095,3]
[334583647,1723276256869,-500.0,0.00021095,3]
[334583648,1723276256879,-500.0,0.00021095,3]
[334583649,1723276256889,-1119.91,0.00021095,3]
[334583650,1723276256899,-575.90244495,0.00021095,3]
[334583651,1723276256908,-684.91,0.00021095,3]
[334583652,1723276256918,-500.0,0.00021095,3]
[334583653,1723276256927,-2428.73,0.00021095,3]
[334583654,1723276256936,-583.08,0.00021095,3]
[334583655,1723276256946,-500.0,0.00021095,3]
[334583656,1723276256955,-500.0,0.00021095,3]
[334583657,1723276256964,-500.0,0.00021095,3]
[334583658,1723276256974,-600.36004167,0.00021095,3]
[334583659,1723276256983,-500.0,0.00021095,3]
[334583660,1723276256992,-500.0,0.00021095,3]
[334583661,1723276257005,-508.7532247,0.00021095,3]
[334583662,1723276257019,-500.0,0.00021095,3]
[334583663,1723276257029,-1626.06,0.00021095,3]
[334583664,1723276257039,-500.0,0.00021095,3]
[334583665,1723276257292,-3529.93,0.00021095,3]
[334583666,1723276257314,-500.0,0.00021095,3]
[334583667,1723276257327,-500.0,0.00021095,3]
[334583668,1723276257337,-505.52341894,0.00021095,3]
[334583669,1723276257346,-967.94,0.00021095,3]
[334583670,1723276257355,-500.0,0.00021095,3]
[334583671,1723276257364,-1149.33,0.00021095,3]
[334583672,1723276257374,-505.0553265,0.00021095,3]
[334583673,1723276257383,-500.0,0.00021095,3]
[334583674,1723276257392,-504.35774727,0.00021095,3]
[334583675,1723276257402,-500.0,0.00021095,3]
[334583676,1723276257411,-500.0,0.00021095,3]
[334583677,1723276257420,-633.27669123,0.00021095,3]
[334583678,1723276257429,-703.72,0.00021095,3]
[334583679,1723276257439,-500.0,0.00021095,3]
[334583680,1723276257450,-500.0,0.00021095,3]
[334583681,1723276257460,-1754.68,0.00021095,3]
[334583682,1723276257471,-200.0,0.00021095,3]
[334583683,1723276257482,-500.0,0.00021095,3]
[334583684,1723276257493,-460.5936226,0.00021095,3]
[334583685,1723276257510,-500.0,0.00021095,3]
[334583686,1723276257519,-500.0,0.00021095,3]
[334583687,1723276257529,-500.0,0.00021095,3]
[334583688,1723276257538,-1405.47,0.00021095,3]
[334583689,1723276257550,-500.0,0.00021095,3]
[334583690,1723276257561,-500.0,0.00021095,3]
[334583691,1723276257576,-500.0,0.00021095,3]
[334583692,1723276257586,-500.0,0.00021095,3]
[334583693,1723276257595,-509.10515614,0.00021095,3]
[334583694,1723276257604,-1728.28,0.00021095,3]
[334583695,1723276257614,-1230.73,0.00021095,3]
[334583696,1723276257624,-500.0,0.00021095,3]
[334583697,1723276257634,-500.0,0.00021095,3]
[334583698,1723276257643,-500.0,0.00021095,3]
[334583699,1723276257653,-500.0,0.00021095,3]
[334583700,1723276257663,-500.0,0.00021095,3]
[334583701,1723276257673,-77.2152562,0.00021095,3]
[334583702,1723276257985,273.37336231,9.9e-05,2]
[334583703,1723276262902,273.37336231,9.9e-05,2]
[334583706,1723276273782,1500.0,0.00014545,2]
[334583708,1723276275693,5063.08838018,0.00014545,2]
[334583711,1723276276556,228.52107767,0.00014545,2]
[334583713,1723276277147,3089.86893809,0.00014545,2]
[334583714,1723276277226,2125.78393313,0.00014545,2]
[334583716,1723276278607,2164.15371537,0.00014545,2]
[334583717,1723276278909,273.37336231,9.9e-05,2]
[334583718,1723276280796,157.28037077,0.00014545,2]
[334583719,1723276281071,1163.69654168,0.00014545,2]
[334583720,1723276281153,1764.53474525,0.00014545,2]
[334583721,1723276281623,8835.67212211,0.00014545,2]
[334583722,1723276282430,402.79763008,0.00014545,2]
[334583723,1723276283001,154.99722224,0.00014545,2]
[334583724,1723276283736,1611.8412718,0.00014545,2]
[334583725,1723276286080,1630.23174338,0.00014545,2]
[334583726,1723276286623,164.19836855,0.00014545,2]
[334583727,1723276286878,1382.9346281,0.00014545,2]
[334583728,1723276288155,154.81113139,0.00014545,2]
[334583729,1723276288292,9115.9890598,0.00014545,2]
[334583730,1723276288533,526.94859834,0.00014545,2]
[334583731,1723276289172,156.5831392,0.00014545,2]
[334583732,1723276292202,810.55110442,0.00014545,2]
[334583733,1723276292882,210.6099872,0.00015,2]
[334583734,1723276293395,2140.71420812,0.00014545,2]
[334583735,1723276294657,273.37336231,9.9e-05,2]
[334583736,1723276296179,9649.70159836,0.00014545,2]
[334583737,1723276296373,387.13050162,0.00014545,2]
[334583738,1723276303669,3036.12568447,0.00014545,2]
[334583739,1723276310897,273.37336231,9.9e-05,2]
[334583740,1723276326574,273.37336231,9.9e-05,2]
[334583741,1723276342304,273.37336231,9.9e-05,2]
[334583742,1723276357737,273.37336231,9.9e-05,2]
[334583743,1723276373819,273.37336231,9.9e-05,2]
[334583744,1723276390058,220.36622198,9.9e-05,2]
[334583745,1723276465778,162.987099,0.00014247,2]
[334583750,1723276657669,4251.06671301,0.00014247,2]
[334583766,1723276875754,250.0,0.00014651,2]